fUST/lending_fUST_20240705
["ID","MTS","AMOUNT","RATE_DAILY","PERIOD"]
[331284745,1720180246538,-169.50434797,0.00030388,4]
[331284746,1720180246547,-303.02802488,0.00030388,4]
[331284747,1720180246557,-8009.49062548,0.00030388,4]
[331284748,1720180246566,-154.88383712,0.00030388,4]
[331284749,1720180246575,-253.98954123,0.00030388,4]
[331284750,1720180246584,-191.03923068,0.00030388,2]
[331284751,1720180246594,-151.57276841,0.00030492,7]
[331284752,1720180246603,-5876.04190098,0.00030736,2]
[331284753,1720180246613,-150.30016482,0.00030908,7]
[331284754,1720180246624,-150.30016482,0.00030994,7]
[331284755,1720180246634,-584.429454,0.00033295,2]
[331284756,1720180246644,-100000.0,0.00033842,4]
[331284757,1720180246655,-3252.46185806,0.00033842,4]
[331284758,1720180246664,-152.80906433,0.00033988,7]
[331284759,1720180246673,-3012.74648721,0.00034045,2]
[331284760,1720180246683,-151.76923,0.00034422,7]
[331284761,1720180246692,-151.0,0.00034422,7]
[331284762,1720180246702,-3239.92770371,0.00034458,4]
[331284763,1720180246712,-2846.41091448,0.00034472,4]
[331284764,1720180246721,-150.73437924,0.00034535,7]
[331284765,1720180246731,-13378.11390107,0.00034562,4]
[331284766,1720180246740,-393.89323921,0.00034567,4]
[331284767,1720180246749,-1061.23104722,0.00034574,4]
[331284768,1720180246759,-435.0,0.00034585,2]
[331284769,1720180246768,-151.0,0.00034588,7]
[331284770,1720180246777,-151.0,0.00034588,7]
[331284771,1720180246787,-4216.21563341,0.00034592,2]
[331284772,1720180246796,-2132.69930736,0.00034602,4]
[331284773,1720180246805,-1204.52031051,0.00034623,21]
[331284774,1720180246815,-351.32038796,0.0003463,30]
[331284775,1720180246828,-1274.94810996,0.0003463,4]
[331284776,1720180246838,-3806.55494681,0.00034634,120]
[331284777,1720180246848,-598.68283136,0.00034642,4]
[331284778,1720180246859,-154.88383712,0.0003467,4]
[331284779,1720180246984,-265.15316548,0.0003467,4]
[331284780,1720180246994,-2316.79226907,0.0003467,4]
[331284781,1720180247004,-393.8702915,0.0003467,4]
[331284782,1720180247013,-415.27387509,0.00034672,4]
[331284783,1720180247023,-155.57235672,0.0003468,4]
[331284784,1720180247032,-173.66290897,0.0003468,4]
[331284785,1720180247042,-154.88383712,0.00034688,4]
[331284786,1720180247051,-264.58665964,0.00034688,4]
[331284787,1720180247060,-2857.31869309,0.00034899,4]
[331284788,1720180247070,-1260.01242543,0.00034989,4]
[331284789,1720180247079,-2196.40771411,0.00035259,4]
[331284790,1720180247088,-1927.48066713,0.00035259,4]
[331284791,1720180247098,-2000.89973827,0.00035259,4]
[331284792,1720180247107,-160.13983905,0.00035371,7]
[331284793,1720180247116,-151.22207,0.00035515,7]
[331284794,1720180247129,-202.408757,0.00035515,7]
[331284795,1720180247138,-202.408757,0.00035515,7]
[331284796,1720180247147,-225.420696,0.00035515,7]
[331284797,1720180247156,-151.0,0.00035515,7]
[331284798,1720180247164,-243.531408,0.00035515,7]
[331284799,1720180247174,-243.531408,0.00035515,7]
[331284800,1720180247184,-162.89436,0.00035515,7]
[331284801,1720180247193,-151.0,0.00035515,7]
[331284802,1720180247202,-151.0,0.00035515,7]
[331284803,1720180247211,-219.319926,0.00035515,7]
[331284804,1720180247220,-212.012607,0.00035515,7]
[331284805,1720180247229,-393.953113,0.00035515,7]
[331284806,1720180247238,-212.012607,0.00035515,7]
[331284807,1720180247247,-219.319926,0.00035515,7]
[331284808,1720180247256,-393.953113,0.00035515,7]
[331284809,1720180247265,-151.0,0.00035515,7]
[331284810,1720180247274,-224.230914,0.00035515,7]
[331284811,1720180247283,-224.230914,0.00035515,7]
[331284812,1720180247293,-5876.04190098,0.00035515,2]
[331284813,1720180247301,-228.341063,0.00035515,7]
[331284814,1720180247310,-151.0,0.00035515,7]
[331284815,1720180247320,-151.0,0.00035515,7]
[331284816,1720180247329,-151.0,0.00035515,7]
[331284817,1720180247339,-151.0,0.00035515,7]
[331284818,1720180247348,-1500.68966724,0.00035615,2]
[331284819,1720180247357,-5491.72,0.00035616,3]
[331284820,1720180247368,-5491.72,0.00035616,3]
[331284821,1720180247382,-151.57276841,0.00035667,7]
[331284822,1720180247390,-158.66408624,0.00035972,7]
[331284823,1720180247399,-1556.2663267,0.00035999,4]
[331284824,1720180247408,-1484.29833384,0.00035999,4]
[331284825,1720180247417,-686.21104459,0.00036,30]
[331284826,1720180247426,-419.586956,0.00036,7]
[331284827,1720180247435,-151.0,0.00036,7]
[331284828,1720180247444,-419.586956,0.00036,7]
[331284829,1720180247453,-151.0,0.00036,7]
[331284830,1720180247463,-151.0,0.00036,7]
[331284831,1720180247472,-424.024018,0.00036,7]
[331284832,1720180247481,-424.024018,0.00036,7]
[331284833,1720180247490,-152.80906433,0.00036018,7]
[331284834,1720180247501,-1420.0684741,0.00036351,2]
[331284835,1720180247511,-1500.0,0.00036732,4]
[331284836,1720180247521,-1086.852493,0.00036833,4]
[331284837,1720180247530,-156.25095608,0.00036966,7]
[331284838,1720180247539,-694.363588,0.00037209,2]
[331284839,1720180247548,-1181.31020319,0.00037259,4]
[331284840,1720180247557,-151.0,0.0003749,7]
[331284841,1720180247566,-214.4209,0.0003749,7]
[331284842,1720180247575,-214.4209,0.0003749,7]
[331284843,1720180247584,-151.0,0.0003749,7]
[331284844,1720180247593,-1029.08397233,0.00037587,4]
[331284845,1720180247603,-152.80906433,0.00037823,7]
[331284846,1720180247612,-153.17115845,0.00037867,7]
[331284847,1720180247621,-642.76758109,0.00037899,4]
[331284848,1720180247631,-394.11469993,0.00038264,4]
[331284849,1720180247640,-360.48479037,0.00038999,4]
[331284850,1720180247651,-256.53141225,0.00038999,2]
[331284851,1720180247661,-2381.36381706,0.00039,90]
[331284852,1720180247670,-2146.27761673,0.00039177,14]
[331284853,1720180247680,-264.86125261,0.00039177,2]
[331284854,1720180247689,-181.33422444,0.00039177,4]
[331284855,1720180247699,-211.50108117,0.00039177,4]
[331284856,1720180247708,-20000.0,0.00039273,3]
[331284857,1720180247717,-419.586956,0.00039273,7]
[331284858,1720180247726,-151.0,0.00039273,7]
[331284859,1720180247735,-419.586956,0.00039273,7]
[331284860,1720180247744,-152.561443,0.00039273,7]
[331284861,1720180247754,-190.98313,0.00039273,7]
[331284862,1720180247765,-224.230914,0.00039273,7]
[331284863,1720180247774,-224.230914,0.00039273,7]
[331284864,1720180247783,-151.0,0.00039273,7]
[331284865,1720180247792,-151.0,0.00039273,7]
[331284866,1720180247802,-424.024018,0.00039273,7]
[331284867,1720180247812,-424.024018,0.00039273,7]
[331284868,1720180247828,-151.0,0.00039273,7]
[331284869,1720180247838,-151.0,0.00039273,7]
[331284870,1720180247847,-154.88383712,0.00039393,10]
[331284871,1720180247856,-154.88383712,0.00039393,4]
[331284872,1720180247867,-155.04482031,0.00039393,4]
[331284873,1720180247878,-276.77676008,0.00039393,4]
[331284874,1720180247888,-584.429454,0.00039394,2]
[331284875,1720180247897,-3990.00210664,0.0003999,4]
[331284876,1720180247907,-371.39375676,0.00039994,4]
[331284877,1720180247917,-215.10199221,0.00039999,4]
[331284878,1720180247927,-235.33275104,0.00039999,4]
[331284879,1720180247937,-151.0,0.0004,120]
[331284880,1720180247946,-151.0,0.0004,120]
[331284881,1720180247955,-12335.03085513,0.0004,30]
[331284882,1720180247965,-3012.74648721,0.00040008,28]
[331284883,1720180247975,-153.17115845,0.00040103,30]
[331284884,1720180247984,-165.722,0.00040193,2]
[331284885,1720180247995,-999.759,0.00040193,2]
[331284886,1720180248004,-978.04,0.00041095,30]
[331284887,1720180248014,-151.0,0.0004126,120]
[331284888,1720180248024,-270.75084604,0.00041589,4]
[331284889,1720180248034,-270.75084604,0.00041589,4]
[331284890,1720180248043,-151.0,0.00041863,120]
[331284891,1720180248052,-159.459632,0.00042009,2]
[331284892,1720180248065,-153.17115845,0.00042155,30]
[331284893,1720180248075,-300.0,0.00042217,7]
[331284894,1720180248114,-300.0,0.00042223,7]
[331284895,1720180248142,-300.0,0.00042244,7]
[331284896,1720180248168,-268.8794469,0.000425,30]
[331284897,1720180248181,-151.0,0.00042521,120]
[331284898,1720180248200,-20000.0,0.00042579,4]
[331284899,1720180248215,-151.0,0.00042579,14]
[331284900,1720180248229,-155.0,0.0004272,45]
[331284901,1720180248246,-151.0,0.0004272,14]
[331284902,1720180248256,-155.480157,0.0004272,14]
[331284903,1720180248268,-379.04509844,0.000428,120]
[331284904,1720180248278,-152.80906433,0.00042944,30]
[331284905,1720180248288,-1503.66411543,0.00043,120]
[331284906,1720180248298,-168.0,0.00043,90]
[331284907,1720180248308,-156.0,0.00043,90]
[331284908,1720180248318,-168.0,0.00043014,90]
[331284909,1720180248329,-150.0,0.00043193,2]
[331284910,1720180248339,-877.0,0.00043193,2]
[331284911,1720180248352,-508.53270738,0.00043287,4]
[331284912,1720180248362,-159.2983416,0.00043409,30]
[331284913,1720180248374,-5000.0,0.0004349,30]
[331284914,1720180248385,-150.73437924,0.0004369,30]
[331284916,1720180248395,-151.0,0.00043726,120]
[331284917,1720180248409,-151.0,0.00043781,120]
[331284919,1720180248419,-3809.2136136,0.000438,60]
[331284921,1720180248429,-219.319926,0.000438,14]
[331284923,1720180248439,-212.012607,0.000438,14]
[331284925,1720180248448,-212.012607,0.000438,14]
[331284926,1720180248459,-219.319926,0.000438,14]
[331284927,1720180248469,-151.0,0.000438,14]
[331284928,1720180248486,-344.586755,0.00043836,7]
[331284929,1720180248497,-344.586755,0.00043836,7]
[331284930,1720180248507,-156.92185569,0.00044,120]
[331284931,1720180248519,-151.57276841,0.0004417,30]
[331284932,1720180248528,-241.0547,0.00044288,2]
[331284933,1720180248537,-158.66408624,0.00044341,30]
[331284934,1720180248546,-373.0,0.000445,20]
[331284935,1720180248555,-160.13983905,0.00044619,30]
[331284936,1720180248564,-3936.24494344,0.00044685,50]
[331284937,1720180248574,-3936.63829259,0.00044685,50]
[331284938,1720180248583,-151.0,0.00044775,14]
[331284939,1720180248594,-243.531408,0.00044775,14]
[331284940,1720180248603,-243.531408,0.00044775,14]
[331284941,1720180248612,-151.0,0.00044775,14]
[331284942,1720180248621,-151.0,0.00044775,14]
[331284943,1720180248632,-393.953113,0.00044775,14]
[331284944,1720180248641,-393.953113,0.00044775,14]
[331284945,1720180248652,-504.49555993,0.00044775,6]
[331284946,1720180248662,-168.0,0.00044877,90]
[331284947,1720180248671,-156.25095608,0.00044932,30]
[331284948,1720180248683,-25259.8569575,0.00045,61]
[331284949,1720180248692,-59182.13022081,0.00045,120]
[331284950,1720180248702,-344.586755,0.00045,7]
[331284951,1720180248711,-344.586755,0.00045,7]
[331284952,1720180248720,-202.408757,0.00045,14]
[331284953,1720180248730,-151.0,0.00045,14]
[331284954,1720180248739,-202.408757,0.00045,14]
[331284955,1720180248748,-214.4209,0.00045,14]
[331284956,1720180248758,-214.4209,0.00045,14]
[331284957,1720180248767,-151.0,0.00045,14]
[331284958,1720180248776,-151.232914,0.00045,14]
[331284959,1720180248785,-151.0,0.00045,14]
[331284960,1720180248794,-247.052392,0.00045,14]
[331284961,1720180248803,-151.0,0.00045,14]
[331284962,1720180248813,-156.530164,0.00045,14]
[331284963,1720180248826,-151.0,0.00045,14]
[331284964,1720180248835,-151.0,0.00045,14]
[331284965,1720180248844,-151.0,0.00045,14]
[331284966,1720180248854,-151.0,0.00045,14]
[331284967,1720180248865,-205.852613,0.00045,14]
[331284968,1720180248877,-205.852613,0.00045,14]
[331284969,1720180248886,-166.10106,0.00045,14]
[331284970,1720180248897,-248.834709,0.00045,14]
[331284971,1720180248906,-248.834709,0.00045,14]
[331284972,1720180248915,-419.586956,0.00045,14]
[331284973,1720180248925,-419.586956,0.00045,14]
[331284974,1720180248934,-224.230914,0.00045,14]
[331284975,1720180248945,-224.230914,0.00045,14]
[331284976,1720180248955,-151.0,0.00045,14]
[331284977,1720180248965,-151.0,0.00045,14]
[331284978,1720180248974,-424.024018,0.00045,14]
[331284979,1720180248984,-424.024018,0.00045,14]
[331284980,1720180248993,-274.471517,0.00045,14]
[331284981,1720180249003,-151.0,0.00045,14]
[331284982,1720180249012,-151.0,0.00045041,120]
[331284983,1720180249022,-152.80906433,0.00045087,30]
[331284984,1720180249031,-3633.45687085,0.00045132,52]
[331284985,1720180249041,-4088.04745769,0.00045132,52]
[331284986,1720180249050,-155.0,0.000452,50]
[331284987,1720180249060,-158.66408624,0.00045311,30]
[331284988,1720180249070,-584.429454,0.00045494,2]
[331284989,1720180249079,-1343.12812529,0.00045579,52]
[331284990,1720180249088,-151.0,0.00045589,120]
[331284991,1720180249098,-293.3096853,0.00045781,2]
[331284992,1720180249107,-293.3096853,0.00045781,2]
[331284993,1720180249116,-293.3096853,0.00045781,2]
[331284994,1720180249131,-293.3096853,0.00045959,2]
[331284995,1720180249140,-293.3096853,0.00045959,2]
[331284996,1720180249149,-293.3096853,0.00045959,2]
[331284997,1720180249159,-3012.74648721,0.00045972,28]
[331284998,1720180249169,-2500.37,0.00046,5]
[331284999,1720180249178,-151.0,0.00046301,120]
[331285000,1720180249187,-158.66408624,0.00046334,30]
[331285001,1720180249198,-151.57276841,0.00046369,30]
[331285002,1720180249292,-150.73437924,0.00046864,30]
[331285003,1720180249314,-170.0,0.00047121,90]
[331285004,1720180249323,-151.0,0.00047452,120]
[331285005,1720180249333,-151.0,0.00047562,120]
[331285006,1720180249343,-1000.0,0.00047945,120]
[331285007,1720180249352,-306.0,0.00047945,2]
[331285008,1720180249362,-10000.0,0.00048,48]
[331285009,1720180249372,-5000.0,0.00048,30]
[331285010,1720180249384,-151.0,0.00048398,14]
[331285011,1720180249393,-151.0,0.00048398,14]
[331285012,1720180249402,-151.0,0.00048398,14]
[331285013,1720180249412,-151.0,0.00048398,14]
[331285014,1720180249422,-14750.92089144,0.00048398,8]
[331285015,1720180249431,-151.0,0.00048473,14]
[331285016,1720180249441,-151.0,0.00048473,14]
[331285017,1720180249450,-310.0,0.00048473,30]
[331285018,1720180249459,-310.0,0.00048473,30]
[331285019,1720180249469,-310.0,0.00048473,30]
[331285020,1720180249481,-310.0,0.00048473,30]
[331285021,1720180249491,-446.822796,0.00048473,30]
[331285022,1720180249504,-8823.13575589,0.00048483,30]
[331285023,1720180249514,-1000.0,0.00048493,120]
[331285024,1720180249523,-219.319926,0.00048722,14]
[331285025,1720180249532,-212.012607,0.00048722,14]
[331285026,1720180249542,-212.012607,0.00048722,14]
[331285027,1720180249551,-219.319926,0.00048722,14]
[331285028,1720180249561,-151.0,0.00048722,14]
[331285029,1720180249571,-39179.43546721,0.00048798,2]
[331285030,1720180249767,-475.2,0.00048798,2]
[331285031,1720180249779,-3239.64042191,0.00048798,2]
[331285032,1720180249788,-151.0,0.00048798,14]
[331285033,1720180249798,-243.531408,0.00048798,14]
[331285034,1720180249808,-243.531408,0.00048798,14]
[331285035,1720180249818,-151.0,0.00048798,14]
[331285036,1720180249831,-151.0,0.00048798,14]
[331285037,1720180249840,-393.953113,0.00048798,14]
[331285038,1720180249850,-393.953113,0.00048798,14]
[331285039,1720180249861,-151.0,0.00048822,120]
[331285040,1720180249870,-153.0,0.00048904,2]
[331285041,1720180249884,-121.60919108,0.00048904,2]
[331285049,1720180428989,1158.30679459,9.999e-05,2]
[331285050,1720180473636,154.88383712,9.999e-05,2]
[331285051,1720180485616,157.41723327,9.999e-05,2]
[331285052,1720180487100,712.23865387,0.0001212,2]
[331285053,1720180496943,176.32648848,9.999e-05,2]
[331285054,1720180513838,176.32648848,9.999e-05,2]
[331285055,1720180515710,157.41723327,9.999e-05,2]
[331285056,1720180517441,1086.852493,0.0001212,2]
[331285057,1720180525873,190.18852042,0.0001212,2]
[331285058,1720180531853,181.33422444,0.0001212,2]
[331285059,1720180537937,415.27387509,0.0001212,2]
[331285060,1720180539913,264.58665964,0.0001212,2]
[331285061,1720180542412,155.57235672,0.0001212,2]
[331285062,1720180548615,1158.30679459,0.0001212,2]
[331285063,1720180554163,598.68283136,0.0001212,2]
[331285064,1720180562163,2132.69930736,0.0001212,2]
[331285065,1720180564445,176.32648848,0.0001212,2]
[331285066,1720180567493,157.41723327,0.0001212,2]
[331285067,1720180568119,100000.0,0.0001212,2]
[331285068,1720180569401,393.8702915,0.0001212,2]
[331285071,1720180743116,157.41723327,9.999e-05,2]
[331285072,1720180745333,2766.6698857,0.00013999,2]
[331285073,1720180760760,226.17986812,9.999e-05,2]
[331285075,1720180824631,24900.0,0.00013998,2]
[331285076,1720180844214,200.60321324,9.999e-05,2]
[331285088,1720180882889,793.558386,0.00013998,2]
[331285091,1720180922344,397.95953211,9.999e-05,2]
[331285147,1720181176207,155.34332,0.0001212,2]
[331285153,1720181376848,24900.0,0.00013973,2]
[331285155,1720181416254,396.779193,0.00013973,2]
[331285156,1720181422272,3000.0,0.00013998,2]
[331285231,1720181439756,-461.7864594,0.00014111,2]
[331285234,1720181439769,-284.26271461,0.00014691,2]
[331285236,1720181439778,-300.0,0.00014997,2]
[331285238,1720181439788,-6981.98564229,0.00014998,2]
[331285240,1720181439797,-9615.23092531,0.00014998,2]
[331285241,1720181439807,-11030.4600577,0.00014998,2]
[331285242,1720181439816,-1597.44376902,0.00014999,2]
[331285243,1720181439826,-1434.5963251,0.00014999,2]
[331285244,1720181439836,-1394.94286337,0.00014999,2]
[331285245,1720181439845,-3138.06906429,0.00014999,2]
[331285246,1720181439855,-2118.54298063,0.00014999,2]
[331285247,1720181439864,-1489.24109091,0.00014999,2]
[331285248,1720181439874,-3130.40828598,0.00014999,4]
[331285249,1720181439883,-3078.85157566,0.00014999,2]
[331285251,1720181439893,-4711.13030053,0.00014999,2]
[331285253,1720181439902,-1500.0,0.00014999,2]
[331285255,1720181439911,-2420.76089721,0.00015,2]
[331285256,1720181439922,-1143.3927915,0.00015,2]
[331285257,1720181439932,-724.46205551,0.00015,2]
[331285258,1720181439942,-561.15239834,0.00015,2]
[331285259,1720181439951,-211.15265534,0.00015,2]
[331285260,1720181439960,-362.32817146,0.00015,2]
[331285261,1720181439970,-610.8572047,0.00015,2]
[331285262,1720181439979,-265.15316548,0.00016,2]
[331285263,1720181439988,-5909.34337433,0.00016154,2]
[331285264,1720181439997,-500.0,0.0001622,2]
[331285265,1720181440007,-500.0,0.0001622,2]
[331285266,1720181440016,-500.0,0.0001622,2]
[331285267,1720181440025,-500.0,0.0001622,2]
[331285268,1720181440041,-628.68646531,0.0001622,2]
[331285269,1720181440050,-500.0,0.0001622,2]
[331285270,1720181440060,-158.80505934,0.0001622,2]
[331285271,1720181440069,-248.66964502,0.0001622,2]
[331285272,1720181440081,-500.0,0.0001622,2]
[331285273,1720181440091,-500.0,0.0001622,2]
[331285274,1720181440101,-500.0,0.0001622,2]
[331285275,1720181440110,-500.0,0.0001622,2]
[331285276,1720181440119,-500.0,0.0001622,2]
[331285277,1720181440129,-383.97827987,0.0001622,2]
[331285278,1720181440138,-500.0,0.0001622,2]
[331285279,1720181440147,-500.0,0.0001622,2]
[331285280,1720181440157,-500.0,0.0001622,2]
[331285281,1720181440167,-500.0,0.0001622,2]
[331285282,1720181440177,-23313.1677545,0.00016222,2]
[331285283,1720181440190,-23313.1677545,0.00016234,2]
[331285284,1720181440200,-23313.1677545,0.00016235,2]
[331285285,1720181440210,-23313.1677545,0.00016244,2]
[331285286,1720181440219,-46626.335509,0.00016245,2]
[331285287,1720181440230,-57214.94712358,0.00016254,2]
[331285288,1720181440240,-17247.80566422,0.00016255,2]
[331285289,1720181440249,-42226.30858632,0.00016255,2]
[331285290,1720181440260,-34932.27430829,0.00016255,2]
[331285291,1720181440270,-166.666666,0.00016438,2]
[331285292,1720181440279,-420.0,0.00016497,2]
[331285293,1720181440288,-276.42306753,0.00016804,2]
[331285294,1720181440298,-166.666666,0.00016823,2]
[331285295,1720181440308,-166.666666,0.00017208,2]
[331285296,1720181440317,-166.666666,0.00017592,2]
[331285297,1720181440327,-166.666666,0.00017977,2]
[331285298,1720181440337,-587.0,0.00018146,2]
[331285299,1720181440347,-190.9326654,0.00018148,2]
[331285300,1720181440357,-166.666666,0.00018362,2]
[331285301,1720181440366,-812.31944159,0.00019,3]
[331285302,1720181440376,-250.0,0.00019041,2]
[331285303,1720181440385,-159.456528,0.00019178,2]
[331285304,1720181440395,-440.6010737,0.00019178,4]
[331285305,1720181440405,-159.460104,0.00019178,2]
[331285306,1720181440414,-23313.1677545,0.0001978,2]
[331285307,1720181440424,-23313.1677545,0.0001979,2]
[331285308,1720181440433,-52100.07365113,0.000198,2]
[331285309,1720181440443,-823.0,0.00019961,2]
[331285310,1720181440453,-4172.94461587,0.0002,2]
[331285311,1720181440463,-435.0,0.0002,2]
[331285312,1720181440476,-3968.06642419,0.0002,2]
[331285313,1720181440485,-1724.35538883,0.0002,2]
[331285314,1720181440494,-225.53942994,0.0002,2]
[331285315,1720181440504,-1116.9418809,0.0002,2]
[331285316,1720181440514,-763.20815407,0.0002,2]
[331285317,1720181440523,-154.88383712,0.0002,2]
[331285318,1720181440532,-173.66290897,0.0002,2]
[331285319,1720181440542,-191.03923068,0.0002,2]
[331285320,1720181440551,-2244.84007704,0.0002,2]
[331285321,1720181440561,-169.50434797,0.0002,2]
[331285322,1720181440570,-396.779193,0.0002096,2]
[331285323,1720181440580,-584.429454,0.00021096,2]
[331285324,1720181440598,-1152.0,0.00021957,2]
[331285325,1720181440607,-160.09733992,0.00022,2]
[331285326,1720181440617,-2699.93975309,0.00022,2]
[331285327,1720181440627,-392.41933261,0.0002217,2]
[331285328,1720181440636,-150.0,0.00022667,2]
[331285329,1720181440645,-23313.1677545,0.0002298,3]
[331285330,1720181440654,-6225.5269381,0.00023,2]
[331285331,1720181440664,-200.0,0.00023,2]
[331285332,1720181440673,-1088.62043982,0.00023089,2]
[331285333,1720181440682,-250.0,0.00023215,2]
[331285334,1720181440692,-152.80906433,0.00024032,2]
[331285335,1720181440700,-1613.0,0.00024153,2]
[331285336,1720181440710,-643.43102199,0.00024243,2]
[331285337,1720181440719,-5909.34337433,0.00024313,2]
[331285338,1720181440728,-150.73437924,0.00024442,2]
[331285339,1720181440738,-380.0,0.00024658,2]
[331285340,1720181440747,-200.0,0.00024658,15]
[331285341,1720181440756,-152.80906433,0.00024953,2]
[331285342,1720181440765,-23313.1677545,0.0002499,3]
[331285343,1720181440774,-171.58665919,0.00025,2]
[331285344,1720181440784,-189.04078712,0.00025,2]
[331285345,1720181440793,-13378.11390107,0.00025,2]
[331285346,1720181440802,-500.0,0.00025,30]
[331285347,1720181440811,-500.0,0.00025,30]
[331285348,1720181440821,-537.0,0.00025,30]
[331285349,1720181440831,-151.57276841,0.00025366,2]
[331285350,1720181440840,-621.1715511,0.00025455,2]
[331285351,1720181440850,-158.66408624,0.00025487,2]
[331285352,1720181440860,-620.05858486,0.00025675,2]
[331285353,1720181440882,-151.57276841,0.00025842,2]
[331285354,1720181440892,-150.30016482,0.00026061,2]
[331285355,1720181440901,-3000.0,0.000265,2]
[331285356,1720181440911,-3000.0,0.0002651,2]
[331285357,1720181440920,-3000.0,0.0002652,2]
[331285358,1720181440930,-5163.924926,0.0002653,2]
[331285359,1720181440939,-1322.0,0.00026568,2]
[331285360,1720181440949,-620.00292924,0.00026959,2]
[331285361,1720181440958,-584.429454,0.00027195,2]
[331285362,1720181440967,-500.0,0.00027397,2]
[331285363,1720181440977,-500.0,0.00027397,2]
[331285364,1720181440986,-500.0,0.00027397,2]
[331285365,1720181440995,-418.81945247,0.00027397,2]
[331285366,1720181441004,-500.0,0.00027397,2]
[331285367,1720181441014,-500.0,0.00027397,2]
[331285368,1720181441023,-500.0,0.00027397,2]
[331285369,1720181441033,-500.0,0.00027397,2]
[331285370,1720181441042,-500.0,0.00027397,2]
[331285371,1720181441051,-500.0,0.00027397,2]
[331285372,1720181441060,-500.0,0.00027397,2]
[331285373,1720181441069,-500.0,0.00027397,2]
[331285374,1720181441080,-500.0,0.00027397,2]
[331285375,1720181441090,-500.0,0.00027397,2]
[331285376,1720181441100,-500.0,0.00027397,2]
[331285377,1720181441109,-500.0,0.00027397,2]
[331285378,1720181441119,-500.0,0.00027397,2]
[331285379,1720181441129,-319.37507223,0.00027397,2]
[331285380,1720181441138,-500.0,0.00027397,2]
[331285381,1720181441148,-500.0,0.00027397,2]
[331285382,1720181441158,-500.0,0.00027397,2]
[331285383,1720181441168,-500.0,0.00027397,2]
[331285384,1720181441184,-500.0,0.00027397,2]
[331285385,1720181441199,-500.0,0.00027397,2]
[331285386,1720181441208,-500.0,0.00027397,2]
[331285387,1720181441218,-500.0,0.00027397,2]
[331285388,1720181441230,-300.0,0.00027397,2]
[331285389,1720181441240,-915.06377454,0.00027397,2]
[331285390,1720181441250,-224.8099451,0.00027397,120]
[331285391,1720181441261,-175.1548047,0.000274,2]
[331285392,1720181441270,-268.30367969,0.00028,2]
[331285393,1720181441279,-12128.31934886,0.00028,30]
[331285394,1720181441289,-158.66408624,0.0002806,2]
[331285395,1720181441298,-150.73437924,0.00029063,2]
[331285396,1720181441307,-30000.0,0.00029793,2]
[331285397,1720181441317,-2000.0,0.00029817,2]
[331285398,1720181441326,-2000.0,0.00029826,2]
[331285399,1720181441336,-2000.0,0.00029835,2]
[331285400,1720181441345,-2000.0,0.00029843,2]
[331285401,1720181441355,-2000.0,0.00029852,2]
[331285402,1720181441365,-2000.0,0.00029861,2]
[331285403,1720181441375,-1087.36634063,0.00029879,2]
[331285404,1720181441384,-1665.33439915,0.00029992,20]
[331285405,1720181441393,-789.859108,0.00029999,2]
[331285406,1720181441519,-544.88391777,0.0003,4]
[331285407,1720181441534,-481.35225436,0.0003,30]
[331285408,1720181441543,-504.49555993,0.00030228,2]
[331285409,1720181441552,-1816.72843543,0.00030292,22]
[331285410,1720181441562,-1816.72843543,0.00030592,22]
[331285411,1720181441574,-1816.72843543,0.00030892,22]
[331285412,1720181441584,-757.3635306,0.00031192,24]
[331285413,1720181441593,-150.73437924,0.00031646,7]
[331285414,1720181441602,-152.80906433,0.0003203,7]
[331285415,1720181441612,-5909.34337433,0.00032471,2]